bitfinex-derivatives/quotes_BTCF0:USTF0_20240925
["timestamp","ask_amount","ask_price","bid_price","bid_amount"]
[1727276527839,0.27576188,63970.0,63969.0,0.00234466]
[1727276528038,0.31273718,63970.0,63969.0,0.00234466]
[1727276528723,0.31473718,63970.0,63969.0,0.00334466]
[1727276528934,0.15634,63966.0,63965.0,0.3608]
[1727276529235,0.15634,63966.0,63959.0,0.081778]
[1727276529236,0.16,63966.0,63959.0,0.081778]
[1727276529428,0.0004,63960.0,63959.0,0.078178]
[1727276530231,0.078577,63960.0,63959.0,0.078178]
[1727276530737,0.078577,63960.0,63959.0,0.079178]
[1727276530939,0.0004,63960.0,63959.0,0.079178]
[1727276531139,0.0004,63960.0,63959.0,0.078178]
[1727276531357,0.0004,63960.0,63959.0,0.079178]
[1727276531836,0.0004,63960.0,63959.0,0.080178]
[1727276535829,0.078577,63960.0,63959.0,0.080178]
[1727276536530,0.238577,63960.0,63959.0,0.080178]
[1727276537030,0.1604,63960.0,63959.0,0.080178]
[1727276537230,0.0004,63960.0,63959.0,0.080178]
[1727276537633,0.0004,63960.0,63959.0,0.158356]
[1727276537848,0.0004,63960.0,63959.0,0.318356]
[1727276540035,0.0004,63960.0,63959.0,1.465574]
[1727276540237,0.0004,63966.0,63965.0,0.156342]
[1727276540444,0.0004,63966.0,63965.0,0.56418029]
[1727276540741,0.0004,63966.0,63965.0,0.517542]
[1727276541340,0.0036,63974.0,63970.0,0.078165]
[1727276541641,0.16,63976.0,63975.0,0.078159]
[1727276541837,0.16,63976.0,63975.0,0.078559]
[1727276542235,0.17145854,63976.0,63975.0,0.078559]
[1727276542838,0.01145854,63976.0,63975.0,0.078559]
[1727276543042,0.16,63976.0,63975.0,0.078559]
[1727276543747,0.07789837,63978.0,63977.0,0.078157]
[1727276543944,0.06232472,63978.0,63977.0,0.0004]
[1727276545137,0.06232472,63978.0,63977.0,0.078557]
[1727276545545,0.06532472,63978.0,63977.0,0.079557]
[1727276546447,0.06832472,63978.0,63977.0,0.080557]
[1727276547534,0.006,63978.0,63977.0,0.080557]
[1727276548140,0.06832427,63978.0,63977.0,0.080557]
[1727276550143,0.006,63978.0,63977.0,0.080557]
[1727276551439,0.084155,63978.0,63977.0,0.080557]
[1727276553453,0.006,63978.0,63977.0,0.080557]
[1727276554552,0.084155,63978.0,63977.0,0.080557]
[1727276558239,0.006,63978.0,63977.0,0.080557]
[1727276559249,0.006,63978.0,63977.0,0.158714]
[1727276559554,0.006,63978.0,63977.0,0.318714]
[1727276560445,0.006,63978.0,63977.0,0.158714]
[1727276560644,0.006,63978.0,63977.0,0.080557]
[1727276560948,0.006,63978.0,63977.0,0.158714]
[1727276561346,0.006,63978.0,63977.0,0.080557]
[1727276561556,0.084155,63978.0,63977.0,0.080557]
[1727276563151,0.16208413,63978.0,63977.0,0.080557]
[1727276563358,0.084155,63978.0,63977.0,0.080557]
[1727276563660,0.16210971,63978.0,63977.0,0.080557]
[1727276563956,0.10949526,63978.0,63977.0,0.080557]
[1727276564160,0.084155,63978.0,63977.0,0.080557]
[1727276564553,0.1776337,63978.0,63977.0,0.080557]
[1727276564748,0.20297387,63978.0,63977.0,0.080557]
[1727276565147,0.084155,63978.0,63977.0,0.080557]
[1727276565748,0.16231,63978.0,63977.0,0.0024]
[1727276565950,0.16231,63978.0,63973.0,0.36172]
[1727276565951,0.07816,63974.0,63973.0,0.36172]
[1727276566263,0.31632,63974.0,63973.0,0.3608]
[1727276566451,0.31672,63974.0,63973.0,0.3608]
[1727276566848,0.078167,63968.0,63967.0,0.0036]
[1727276567154,0.078167,63968.0,63964.0,0.439772]
[1727276567155,0.078171,63965.0,63964.0,0.48640186]
[1727276567354,0.078571,63965.0,63964.0,0.48560186]
[1727276567754,0.078571,63965.0,63964.0,0.3608]
[1727276568966,0.081571,63965.0,63964.0,0.3608]
[1727276570267,0.084571,63965.0,63964.0,0.3608]
[1727276571863,0.084571,63965.0,63964.0,0.438972]
[1727276572165,0.084571,63965.0,63964.0,0.3608]
[1727276572471,0.162742,63965.0,63964.0,0.3608]
[1727276572969,0.162742,63965.0,63959.0,0.36164]
[1727276572970,0.156354,63960.0,63959.0,0.36164]
[1727276573263,0.156754,63960.0,63959.0,0.3608]
[1727276574470,0.156754,63960.0,63959.0,0.3628]
[1727276574766,0.156754,63960.0,63959.0,0.3648]
[1727276575062,0.21911625,63960.0,63959.0,0.3648]
[1727276575364,0.078182,63956.0,63951.0,0.0036]
[1727276575568,0.078189,63950.0,63949.0,0.3608]
[1727276576869,0.068189,63950.0,63949.0,0.438991]
[1727276577364,0.058189,63950.0,63949.0,0.438991]
[1727276577553,0.0004,63952.0,63951.0,0.078188]
[1727276577758,0.0004,63952.0,63951.0,0.078588]
[1727276577958,0.0037,63963.0,63951.0,1.06952]
[1727276578168,0.0036,63962.0,63961.0,0.078176]
[1727276578465,0.16,63967.0,63966.0,0.07817]
[1727276578655,0.17145289,63967.0,63966.0,0.43937]
[1727276580161,0.24962189,63967.0,63966.0,0.43937]
[1727276580565,0.31191683,63967.0,63966.0,0.43937]
[1727276580764,0.25562189,63967.0,63966.0,0.44037]
[1727276581069,0.26162189,63967.0,63966.0,0.44137]
[1727276581664,0.32391737,63967.0,63966.0,0.44137]
[1727276581858,0.24574837,63967.0,63966.0,0.44137]
[1727276582081,0.18345289,63967.0,63966.0,0.44137]
[1727276582270,0.012,63967.0,63966.0,0.44137]
[1727276583380,0.012,63967.0,63966.0,0.51954]
[1727276583566,0.0036,63972.0,63971.0,0.078164]
[1727276583761,0.0036,63977.0,63976.0,0.078158]
[1727276583965,0.0036,63977.0,63971.0,0.4248]
[1727276583966,0.0023455,63979.0,63978.0,0.078155]
[1727276584172,0.0023455,63979.0,63978.0,0.438955]
[1727276584673,0.0023455,63979.0,63978.0,0.439355]
[1727276585779,0.0023455,63979.0,63978.0,0.440355]
[1727276585780,0.0163455,63979.0,63978.0,0.440355]
[1727276587375,0.0203455,63979.0,63978.0,0.441355]
[1727276591776,0.0024,63984.0,63978.0,0.5232]
[1727276592083,0.0024,63984.0,63983.0,0.078549]
[1727276592570,0.0024,63984.0,63983.0,0.189098]
[1727276593768,0.0024,63984.0,63983.0,0.190098]
[1727276593966,0.0084,63984.0,63983.0,0.221898]
[1727276594163,0.0036,63989.0,63988.0,0.156286]
[1727276594375,0.078132,63997.0,63988.0,0.156286]
[1727276594376,0.22229303,63995.0,63988.0,0.3616]
[1727276594575,0.06229303,63995.0,63994.0,0.3616]
[1727276594780,0.01157196,63996.0,63994.0,0.3616]
[1727276594981,0.14036859,63995.0,63994.0,0.439735]
[1727276595380,0.10347084,63995.0,63994.0,0.439735]
[1727276595576,0.10547084,63995.0,63994.0,0.439735]
[1727276595783,0.26547084,63995.0,63994.0,0.439735]
[1727276596776,0.26547087,63995.0,63994.0,0.439735]
[1727276597072,0.26547087,63995.0,63994.0,0.440735]
[1727276597284,0.26347087,63995.0,63994.0,0.441735]
[1727276598074,0.238135,63995.0,63994.0,0.441735]
[1727276598385,0.31586915,63995.0,63994.0,0.441735]
[1727276598772,0.238135,63995.0,63994.0,0.441735]
[1727276598979,0.238135,63995.0,63994.0,0.3636]
[1727276599186,0.31586245,63995.0,63994.0,0.3636]
[1727276599883,0.31627,63995.0,63994.0,0.3636]
[1727276600875,0.238135,63995.0,63994.0,0.3636]
[1727276601077,0.39398162,63995.0,63994.0,0.3636]
[1727276602281,0.31584662,63995.0,63994.0,0.3636]
[1727276603086,0.31627,63995.0,63994.0,0.3636]
[1727276604185,0.37844619,63995.0,63994.0,0.3636]
[1727276604391,0.238135,63995.0,63994.0,0.3636]
[1727276606282,0.238135,63995.0,63994.0,0.441736]
[1727276606984,0.238135,63995.0,63994.0,0.3636]
[1727276607291,0.238135,63995.0,63988.0,0.0008]
[1727276607292,0.078142,63989.0,63988.0,0.078943]
[1727276607590,0.078142,63989.0,63988.0,0.078143]
[1727276607975,0.16,63991.0,63984.0,0.078147]
[1727276607976,0.078148,63985.0,63984.0,0.078147]
[1727276608183,0.078157,63977.0,63976.0,0.0036]
[1727276608374,0.078164,63971.0,63968.0,0.05023772]
[1727276608577,0.1604,63969.0,63968.0,0.078167]
[1727276608773,0.16,63969.0,63968.0,0.078167]
[1727276609283,0.238166,63969.0,63968.0,0.078167]
[1727276609873,0.078167,63968.0,63967.0,0.3608]
[1727276610078,0.078167,63968.0,63963.0,0.00234506]
[1727276610079,0.078567,63968.0,63957.0,0.07818]
[1727276610279,0.06277412,63961.0,63957.0,0.0036]
[1727276610579,0.16,63958.0,63955.0,0.078183]
[1727276610780,0.1604,63956.0,63950.0,0.503289]
[1727276610976,0.1604,63956.0,63950.0,0.4251]
[1727276611290,0.22277412,63956.0,63955.0,0.078183]
[1727276611491,0.1564,63956.0,63955.0,0.078183]
[1727276611694,0.0004,63956.0,63955.0,0.078183]
[1727276611882,0.0004,63956.0,63955.0,1.147263]
[1727276612592,0.0004,63956.0,63955.0,1.154263]
[1727276613789,0.0036,63961.0,63955.0,1.154263]
[1727276613790,0.0036,63961.0,63960.0,0.078177]
[1727276613986,0.06595074,63966.0,63965.0,0.078171]
[1727276614186,0.06232624,63966.0,63965.0,0.078171]
[1727276615390,0.07787096,63970.0,63966.0,0.07817]
[1727276615391,0.06232624,63967.0,63966.0,0.07817]
[1727276615580,0.01135868,63973.0,63967.0,0.078169]
[1727276615581,0.06232624,63968.0,63967.0,0.078169]
[1727276616392,0.06232624,63970.0,63969.0,0.078166]
[1727276616597,0.07787096,63973.0,63970.0,0.078165]
[1727276617499,0.16,63971.0,63970.0,0.078165]
[1727276618185,0.078169,63967.0,63966.0,0.3608]
[1727276618383,0.238969,63967.0,63966.0,0.3608]
[1727276618601,0.238969,63967.0,63966.0,0.43897]
[1727276618602,0.1608,63967.0,63966.0,0.43897]
[1727276618902,0.0008,63967.0,63966.0,0.43897]
[1727276620695,0.0028,63967.0,63966.0,0.43897]
[1727276621192,0.01138647,63975.0,63974.0,0.07816]
[1727276621395,0.00096,63981.0,63980.0,0.078153]
[1727276621595,0.00176,63985.0,63984.0,0.078148]
[1727276621791,0.01238492,63985.0,63984.0,0.078148]
[1727276624293,0.01538492,63985.0,63984.0,0.079148]
[1727276624499,0.01538492,63985.0,63984.0,0.080148]
[1727276625303,0.0038,63985.0,63984.0,0.080148]
[1727276628910,0.0038,63985.0,63984.0,0.158296]
[1727276630195,0.0008,63985.0,63984.0,0.157296]
[1727276630402,0.0038,63985.0,63984.0,0.157296]
[1727276631603,0.0038,63985.0,63984.0,0.156296]
[1727276632298,0.0038,63985.0,63984.0,0.625176]
[1727276632616,0.0038,63985.0,63984.0,1.225176]
[1727276634414,0.06229488,63989.0,63988.0,0.078143]
[1727276634715,0.06229488,63989.0,63988.0,0.078543]
[1727276635413,0.07787096,63992.0,63991.0,0.078139]
[1727276635609,0.07787096,63992.0,63991.0,0.078539]
[1727276636306,0.08939548,63993.0,63992.0,0.078138]
[1727276636507,0.0008,63994.0,63993.0,0.078137]
[1727276636707,0.0261354,63994.0,63993.0,0.078537]
[1727276636914,0.0261354,63994.0,63993.0,0.078137]
[1727276637716,0.0378596,63994.0,63993.0,0.078137]
[1727276638715,0.0378596,63994.0,63993.0,0.079137]
[1727276638916,0.0378596,63994.0,63993.0,0.080137]
[1727276639505,0.1159956,63994.0,63993.0,0.080137]
[1727276639701,0.0378596,63994.0,63993.0,0.080137]
[1727276640122,0.1159956,63994.0,63993.0,0.080137]
[1727276640506,0.1159956,63994.0,63993.0,0.002]
[1727276640507,0.23106236,63994.0,63993.0,0.002]
[1727276641213,0.1687962,63994.0,63993.0,0.002]
[1727276641417,0.0906602,63994.0,63993.0,0.002]
[1727276641608,0.0906602,63994.0,63993.0,0.080137]
[1727276642519,0.0906602,63994.0,63993.0,0.002]
[1727276644815,0.0906602,63994.0,63993.0,0.080137]
[1727276645718,0.0906602,63994.0,63993.0,0.002]
[1727276646108,0.1687962,63994.0,63993.0,0.002]
[1727276646322,0.2466289,63994.0,63993.0,0.002]
[1727276648213,0.19413211,63994.0,63993.0,0.002]
[1727276648414,0.24426669,63994.0,63993.0,0.002]
[1727276648722,0.24426669,63994.0,63983.0,0.0036]
[1727276648723,0.078147,63985.0,63983.0,0.0036]
[1727276648918,0.10348291,63985.0,63984.0,0.079348]
[1727276650221,0.078147,63985.0,63984.0,0.079348]
[1727276650527,0.19706992,63985.0,63984.0,0.079348]
[1727276650729,0.20879521,63985.0,63984.0,0.079348]
[1727276651021,0.20879521,63985.0,63984.0,0.0012]
[1727276651213,0.11520968,63985.0,63984.0,0.0012]
[1727276651910,0.03706268,63985.0,63984.0,0.079348]
[1727276652109,0.02533739,63985.0,63984.0,0.079348]
[1727276652511,0.10348439,63985.0,63984.0,0.079348]
[1727276652810,0.62428439,63985.0,63984.0,0.0012]
[1727276654620,0.71803232,63985.0,63984.0,0.0012]
[1727276655225,0.62428439,63985.0,63984.0,0.0012]
[1727276655530,0.078147,63985.0,63984.0,0.079348]
[1727276657533,0.15626511,63989.0,63984.0,0.0012]
[1727276657729,0.15626511,63989.0,63988.0,0.0008]
[1727276658125,0.16758439,63989.0,63988.0,0.0008]
[1727276658733,0.16858439,63989.0,63988.0,0.0008]
[1727276658928,0.16858439,63989.0,63988.0,0.0018]
[1727276659129,0.16858439,63989.0,63988.0,0.079943]
[1727276659632,0.16858439,63989.0,63988.0,0.080943]
[1727276660229,0.01231928,63989.0,63988.0,0.080943]
[1727276660733,0.03765576,63989.0,63988.0,0.080943]
[1727276661128,0.01231928,63989.0,63988.0,0.080943]
[1727276661330,0.03765575,63989.0,63988.0,0.080943]
[1727276661923,0.11579775,63989.0,63988.0,0.080943]
[1727276662129,0.27579775,63989.0,63988.0,0.0028]
[1727276662930,0.25046128,63989.0,63988.0,0.0028]
[1727276663228,0.27579776,63989.0,63988.0,0.0028]
[1727276663635,0.27579776,63989.0,63988.0,0.080943]
[1727276664838,0.11579776,63989.0,63988.0,0.080943]
[1727276666629,0.11619776,63989.0,63988.0,0.080943]
[1727276667335,0.19433976,63989.0,63988.0,0.0028]
[1727276668831,0.19433976,63989.0,63988.0,0.080943]
[1727276669538,0.19434021,63989.0,63988.0,0.080943]
[1727276670440,0.24443899,63989.0,63988.0,0.080943]
[1727276670842,0.24443899,63989.0,63988.0,0.0028]
[1727276673932,0.19434021,63989.0,63988.0,0.0028]
[1727276677043,0.24444526,63989.0,63988.0,0.0028]
[1727276677834,0.19434021,63989.0,63988.0,0.0028]
[1727276678742,0.07815866,63990.0,63989.0,0.078142]
[1727276678951,0.0004,63992.0,63991.0,0.156278]
[1727276679242,0.01151625,63998.0,63994.0,0.078136]
[1727276679243,0.09379551,63995.0,63994.0,0.078136]
[1727276679448,0.078125,64003.0,63994.0,0.078136]
[1727276679449,0.09379551,63996.0,63995.0,0.078135]
[1727276679643,0.09379551,63996.0,63995.0,0.078935]
[1727276679944,0.09376741,63996.0,63995.0,1.2288]
[1727276680154,0.09376741,63997.0,63996.0,0.078133]
[1727276680441,0.09376741,63999.0,63996.0,0.0008]
[1727276680642,0.09376741,64002.0,64001.0,0.078127]
[1727276680846,0.09376741,64003.0,64002.0,0.078126]
[1727276681042,0.09376741,64003.0,64002.0,0.078926]
[1727276681247,0.09376741,64003.0,64002.0,0.078126]
[1727276681443,0.17189141,64004.0,64002.0,0.078126]
[1727276681638,0.17189141,64004.0,64003.0,0.0008]
[1727276682449,0.238124,64004.0,64003.0,0.078925]
[1727276683553,0.238124,64004.0,64003.0,0.079925]
[1727276683744,0.238124,64004.0,64003.0,0.080925]
[1727276685047,0.10529639,64006.0,64005.0,0.078122]
[1727276685248,0.09376741,64010.0,64005.0,0.0008]
[1727276685450,0.0325,64012.0,64011.0,0.078115]
[1727276685653,0.04390643,64012.0,64011.0,0.078915]
[1727276685841,0.17117923,64012.0,64011.0,0.078915]
[1727276686042,0.17117923,64012.0,64011.0,0.0008]
[1727276686439,0.12202043,64012.0,64011.0,0.078915]
[1727276687142,0.12202043,64012.0,64011.0,0.0008]
[1727276687446,0.17123884,64012.0,64011.0,0.0018]
[1727276687640,0.17123884,64012.0,64011.0,0.0028]
[1727276688151,0.17123884,64012.0,64011.0,0.080915]
[1727276689353,0.12202043,64012.0,64011.0,0.080915]
[1727276690647,0.04390643,64012.0,64011.0,0.080915]
[1727276692846,0.12202043,64012.0,64011.0,0.080915]
[1727276697157,0.18379043,64012.0,64011.0,0.080915]
[1727276700685,0.22444938,64012.0,64011.0,0.080915]
[1727276700981,0.21304288,64012.0,64011.0,0.080915]
[1727276701576,0.23191288,64012.0,64011.0,0.080915]
[1727276702488,0.31002688,64012.0,64011.0,0.080915]
[1727276702786,0.31002995,64012.0,64011.0,0.080915]
[1727276703078,0.13846874,64012.0,64011.0,0.080915]
[1727276703283,0.21658274,64012.0,64011.0,0.080915]
[1727276704473,0.13846874,64012.0,64011.0,0.080915]
[1727276704673,0.10596874,64012.0,64011.0,0.190915]
[1727276704875,0.19945,64012.0,64011.0,0.190915]
[1727276705986,0.10596874,64012.0,64011.0,0.190915]
[1727276706675,0.10596874,64012.0,64011.0,0.189915]
[1727276706876,0.10596874,64012.0,64011.0,0.190915]
[1727276707073,0.10596874,64012.0,64011.0,0.080915]
[1727276707484,0.15517642,64012.0,64011.0,0.080915]
[1727276707682,0.08064,64012.0,64011.0,0.080915]
[1727276708080,0.08064,64012.0,64011.0,0.26903]
[1727276708286,0.08064,64012.0,64011.0,0.190915]
[1727276708487,0.10596808,64012.0,64011.0,0.190915]
[1727276708691,0.10596808,64012.0,64011.0,0.080915]
[1727276709791,0.1059681,64012.0,64011.0,0.080915]
[1727276709995,0.1059681,64012.0,64011.0,0.190915]
[1727276710182,0.1059681,64012.0,64011.0,0.26903]
[1727276710383,0.10596745,64012.0,64011.0,0.26903]
[1727276710586,0.15869755,64012.0,64011.0,0.26903]
[1727276710787,0.08064,64012.0,64011.0,0.26903]
[1727276710991,0.08064,64012.0,64011.0,0.190915]
[1727276711185,0.08064,64012.0,64011.0,0.26903]
[1727276712889,0.1430841,64012.0,64011.0,0.26903]
[1727276713191,0.08064,64012.0,64011.0,0.26903]
[1727276713491,0.14308408,64012.0,64011.0,0.26903]
[1727276714084,0.08064,64012.0,64011.0,0.26903]
[1727276714286,0.14308408,64012.0,64011.0,0.26903]
[1727276714481,0.08064,64012.0,64011.0,0.26903]
[1727276715184,0.14307947,64012.0,64011.0,0.26903]
[1727276715586,0.08064,64012.0,64011.0,0.26903]
[1727276715787,0.08064,64012.0,64011.0,0.31561812]
[1727276715987,0.08064,64012.0,64011.0,0.26903]
[1727276716288,0.08064,64012.0,64011.0,0.31561322]
[1727276716488,0.08064,64012.0,64011.0,0.26903]
[1727276717286,0.08064,64012.0,64011.0,0.31561322]
[1727276717490,0.08064,64012.0,64011.0,0.26903]
[1727276717685,0.08064,64012.0,64011.0,0.31561322]
[1727276718093,0.08064,64012.0,64011.0,0.26903]
[1727276718593,0.158754,64012.0,64011.0,0.0028]
[1727276718789,0.08064,64012.0,64011.0,0.080915]
[1727276718991,0.08064,64012.0,64011.0,0.190915]
[1727276719184,0.1430661,64012.0,64011.0,0.190915]
[1727276719382,0.08064,64012.0,64011.0,0.190915]
[1727276719694,0.08064,64012.0,64011.0,0.26903]
[1727276720285,0.08064,64012.0,64011.0,0.31560068]
[1727276720788,0.08064,64012.0,64011.0,1.31711189]
[1727276721300,0.03459,64014.0,64013.0,0.078113]
[1727276721688,0.03459,64014.0,64013.0,1.146753]
[1727276721996,0.0036,64020.0,64017.0,0.078107]
[1727276721997,0.06602488,64020.0,64017.0,0.078107]
[1727276722187,0.06242488,64021.0,64020.0,0.078104]
[1727276722387,0.06242488,64023.0,64022.0,0.078102]
[1727276722586,0.06242488,64025.0,64022.0,0.1108]
[1727276722797,0.07805755,64023.0,64019.0,0.3616]
[1727276723193,0.0036,64029.0,64019.0,0.3616]
[1727276723194,0.06237107,64020.0,64019.0,0.3616]
[1727276723396,0.06237107,64020.0,64019.0,0.549705]
[1727276723882,0.06237107,64020.0,64019.0,0.56151443]
[1727276724089,0.06237107,64021.0,64020.0,0.078104]
[1727276724393,0.06237107,64021.0,64020.0,0.266208]
[1727276724598,0.06237107,64021.0,64020.0,1.335608]
[1727276724997,0.06237107,64022.0,64021.0,0.078103]
[1727276725191,0.06237107,64023.0,64022.0,0.078102]
[1727276725497,0.06237107,64025.0,64024.0,0.078099]
[1727276725693,0.06237107,64026.0,64025.0,0.078098]
[1727276725894,0.06237107,64026.0,64025.0,0.549698]
[1727276726195,0.06237107,64027.0,64026.0,0.078097]
[1727276726499,0.06237107,64027.0,64026.0,0.188897]
[1727276726992,0.0319,64031.0,64026.0,0.1108]
[1727276727185,0.0319,64031.0,64030.0,0.0008]
[1727276727386,0.1419,64031.0,64030.0,0.0008]
[1727276727591,0.0319,64031.0,64030.0,0.078892]
[1727276728795,0.07805755,64034.0,64033.0,0.078088]
[1727276729003,0.07805755,64034.0,64033.0,0.188888]
[1727276729297,0.07805755,64034.0,64033.0,0.657408]
[1727276729593,0.18805755,64034.0,64033.0,0.0008]
[1727276729797,0.11,64034.0,64033.0,0.0008]
[1727276730002,0.188087,64034.0,64033.0,0.0018]
[1727276730186,0.188087,64034.0,64033.0,0.0028]
[1727276730187,0.220487,64034.0,64033.0,0.0028]
[1727276730390,0.1424,64034.0,64029.0,0.078092]
[1727276730589,0.06226178,64031.0,64029.0,0.078092]
[1727276730796,0.078094,64028.0,64027.0,0.188095]
[1727276732300,0.0332,64034.0,64027.0,0.188095]
[1727276732301,0.078091,64031.0,64030.0,0.078091]
[1727276732495,0.078091,64031.0,64030.0,0.078891]
[1727276733092,0.078091,64031.0,64030.0,0.0008]
[1727276733292,0.078091,64031.0,64025.0,0.3608]
[1727276733293,0.11,64031.0,64019.0,0.078105]
[1727276733501,0.11,64022.0,64019.0,0.078105]
[1727276733806,0.081693,64029.0,64021.0,0.4708]
[1727276734097,0.078093,64029.0,64028.0,0.0008]
[1727276734298,0.188093,64029.0,64028.0,0.0008]
[1727276734501,0.188093,64029.0,64026.0,0.188096]
[1727276734502,0.078093,64029.0,64026.0,0.188096]
[1727276734907,0.002,64031.0,64029.0,0.078093]
[1727276735204,0.002,64031.0,64030.0,0.0008]
[1727276735414,0.002,64031.0,64030.0,0.0018]
[1727276735987,0.002,64031.0,64030.0,0.0008]
[1727276736192,0.01268683,64031.0,64030.0,0.0008]
[1727276736406,0.002,64031.0,64030.0,0.0008]
[1727276736610,0.0316,64031.0,64030.0,0.0008]
[1727276736797,0.109691,64031.0,64030.0,0.0018]
[1727276737196,0.109691,64031.0,64015.0,0.3608]
[1727276737197,0.078103,64021.0,64016.0,0.04653362]
[1727276737398,0.078103,64021.0,64019.0,0.078105]
[1727276737600,0.0333,64020.0,64019.0,0.078105]
[1727276739318,0.078109,64016.0,64013.0,0.04653362]
[1727276739636,0.0004,64014.0,64011.0,0.00234282]
[1727276739797,0.0004,64014.0,64013.0,0.078113]
[1727276739993,0.0308,64015.0,64013.0,0.078113]
[1727276739994,0.0308,64015.0,64014.0,0.078111]
[1727276740206,0.0308,64015.0,64014.0,0.078511]
[1727276741705,0.10891,64015.0,64014.0,0.0004]
[1727276742212,0.078113,64013.0,64011.0,0.00234282]
[1727276742506,0.0004,64012.0,64011.0,0.08045782]
[1727276742721,0.07812,64008.0,64006.0,0.3608]
[1727276742898,0.0004,64012.0,64011.0,0.078115]
[1727276743103,0.01432396,64015.0,64011.0,0.078115]
[1727276743104,0.07312396,64015.0,64014.0,0.079111]
[1727276743303,0.0624,64015.0,64014.0,0.079511]
[1727276744203,0.14051,64015.0,64014.0,0.0014]
[1727276744515,0.50131,64015.0,64014.0,0.0014]
[1727276744716,0.66131,64015.0,64014.0,0.0014]
[1727276744916,0.72357178,64015.0,64014.0,0.0014]
[1727276745211,0.73942,64015.0,64014.0,0.0014]
[1727276745413,0.078114,64012.0,64011.0,0.0004]
[1727276745609,0.078514,64012.0,64011.0,0.0004]
[1727276746012,0.15657155,64012.0,64011.0,0.0004]
[1727276746206,0.078514,64012.0,64011.0,0.0004]
[1727276746611,0.078514,64012.0,64006.0,0.439721]
[1727276746612,0.07812,64007.0,64006.0,0.439721]
[1727276746833,0.07852,64007.0,64006.0,0.078121]
[1727276747010,0.078125,64003.0,64002.0,0.078126]
[1727276747619,0.078525,64003.0,64002.0,0.078126]
[1727276747823,0.078128,64001.0,63998.0,0.43893]
[1727276748009,0.0004,63999.0,63998.0,0.438931]
[1727276748508,0.0004,63999.0,63995.0,0.078134]
[1727276748708,0.0004,63996.0,63995.0,0.078134]
[1727276749507,0.078137,63993.0,63992.0,0.00088]
[1727276749710,0.078537,63993.0,63988.0,0.00234387]
[1727276749911,0.0004,63989.0,63988.0,0.00234387]
[1727276750210,0.078138,63992.0,63988.0,0.00234387]
[1727276750515,0.078142,63989.0,63988.0,0.00234387]
[1727276750912,0.078142,63989.0,63988.0,0.00334387]
[1727276751807,0.078142,63989.0,63988.0,0.001]
[1727276752007,0.156284,63989.0,63988.0,0.001]
[1727276752619,0.078142,63989.0,63988.0,0.001]
[1727276752822,0.08874,63989.0,63988.0,0.001]
[1727276753116,0.08974,63989.0,63988.0,0.001]
[1727276753316,1.236722,63989.0,63988.0,0.001]
[1727276753716,1.236722,63989.0,63980.0,0.0036]
[1727276753717,0.078152,63981.0,63980.0,0.0036]
[1727276753919,0.078154,63979.0,63978.0,0.438955]
[1727276754126,0.0004,63981.0,63980.0,0.078153]
[1727276754338,0.078552,63981.0,63980.0,0.078553]
[1727276755018,0.08955743,63981.0,63980.0,0.078553]
[1727276755612,0.08955743,63981.0,63980.0,0.087553]
[1727276755812,0.08955743,63981.0,63980.0,0.0094]
[1727276756823,0.08955743,63981.0,63980.0,0.087553]
[1727276757626,0.08955743,63981.0,63980.0,0.094553]
[1727276760227,0.01140543,63981.0,63980.0,0.094553]
[1727276760738,0.08955743,63981.0,63980.0,0.0164]
[1727276761026,0.16770943,63981.0,63980.0,0.0164]
[1727276761730,0.08955743,63981.0,63980.0,0.0164]
[1727276761917,0.08955743,63981.0,63980.0,0.094553]
[1727276762413,0.0004,63981.0,63980.0,0.332706]
[1727276762617,0.0036,63989.0,63988.0,0.078143]
[1727276762826,0.3562,63997.0,63992.0,0.078138]
[1727276762827,0.00234474,63994.0,63992.0,0.078138]
[1727276763124,0.00234474,63994.0,63992.0,0.238538]
[1727276763328,0.00234474,63994.0,63992.0,0.238138]
[1727276763531,0.00234474,63994.0,63992.0,0.078138]
[1727276763730,0.00234474,63994.0,63993.0,0.078137]
[1727276763931,0.00234474,63994.0,63993.0,0.078537]
[1727276765725,0.00234474,63994.0,63993.0,0.238537]
[1727276766229,0.00634474,63994.0,63993.0,0.238537]
[1727276767017,0.00734474,63994.0,63993.0,0.238537]
[1727276767428,0.00734474,63994.0,63993.0,0.078537]
[1727276767629,0.004,63994.0,63993.0,0.078537]
[1727276768330,0.005,63994.0,63993.0,0.078537]
[1727276768925,0.001,63994.0,63993.0,0.078537]
[1727276769127,0.439936,63994.0,63993.0,0.0024]
[1727276769531,0.472736,63994.0,63993.0,0.0024]
[1727276769737,1.619672,63994.0,63993.0,0.0024]
[1727276769920,0.078142,63989.0,63988.0,0.0004]
[1727276770128,0.238542,63989.0,63988.0,0.0004]
[1727276770827,0.316684,63989.0,63988.0,0.0004]
[1727276771035,0.078153,63980.0,63979.0,0.0036]
[1727276771331,0.078161,63973.0,63972.0,0.002]
[1727276771636,0.078561,63973.0,63972.0,0.002]
[1727276771829,0.078161,63973.0,63972.0,0.002]
[1727276772137,0.078156,63978.0,63977.0,0.078157]
[1727276772339,0.078156,63978.0,63977.0,0.078557]
[1727276772640,0.078156,63978.0,63977.0,0.078157]
[1727276772839,0.01141683,63980.0,63978.0,0.078155]
[1727276773047,0.078553,63980.0,63979.0,0.0004]
[1727276774127,0.078553,63980.0,63979.0,0.078554]
[1727276774333,0.078553,63980.0,63979.0,0.087554]
[1727276774530,0.078553,63980.0,63979.0,0.0094]
[1727276775732,0.078553,63980.0,63979.0,0.0194]
[1727276776744,0.078553,63980.0,63979.0,0.097554]
[1727276778431,0.0004,63980.0,63979.0,0.097554]
[1727276779133,0.0004,63980.0,63979.0,0.335708]
[1727276779332,0.0004,63980.0,63979.0,0.727908]